Cogmind - Beta 12 X6 @@@ ROGUE MODE // 2023.02.03 @ 22:31:33 Player: Decinym Result: Self-destructed Performance ------------- Evolutions (5) 2500 Regions Visited (19) 3800 Robots Destroyed (198) 990 Value Destroyed (8431) 8431 Prototype IDs (34) 680 Alien Tech Used (0) 0 Bonus (6747) 6747 TOTAL SCORE: 23148 Bonus ------- High Alert Combat Kills 1827 Follower Combat Kills 1871 Entered Garrisons 1200 Used RIF Installer 3000 Aligned with FarCom 300 Friendly Fire -1451 Cogmind --------- Core Integrity 631/1000 Matter 263/300 Energy 392/565 System Corruption 4% Temperature Danger (458) Movement Treading (150) Location -5/Garrison Parts ------- > --- POWER (2) -------- Neutrino Core Quantum Reactor > --- PROPULSION (6) --- Biometal Heavy Treads Biometal Heavy Treads Advanced Heavy Siege Treads > --- UTILITY (7) ------ Advanced Cooling System Large Storage Unit Structural Scanner Advanced Targeting Computer > --- WEAPON (2) ------- Enhanced Nova Cannon Enhanced Nova Cannon > --- INVENTORY (15) --- Medium Treads Centrium Wheel Advanced Power Amplifier Huge Storage Unit Precision Shock Rifle Precision Shock Rifle Improved EM Pulse Cannon HERF Cannon Compact HERF Cannon Plasma Cutter Impact Mace Peak State ------------ > --- POWER ------------ Quantum Reactor Light Quantum Reactor > --- PROPULSION ------- Biometal Heavy Treads Biometal Heavy Treads Advanced Heavy Siege Treads > --- UTILITY ---------- Advanced Cooling System Large Storage Unit Structural Scanner Advanced Targeting Computer Hardened Light Armor Plating Layered Medium Armor Plating Medium Reflective Plating > --- WEAPON ----------- Enhanced Quantum Rifle Enhanced Nova Cannon > --- INVENTORY -------- Neutrino Core Medium Treads Centrium Wheel Advanced Power Amplifier Huge Storage Unit Hardened Medium Armor Plating Precision Shock Rifle Precision Shock Rifle Improved EM Pulse Cannon HERF Cannon Compact HERF Cannon Micro-nuke Launcher Remote Datajack Plasma Cutter Impact Mace [Rating: 119] Favorites ----------- Power Ion Engine Engine Ion Engine Power Core Fission Core Reactor Antimatter Reactor Propulsion Light Treads Treads Light Treads Leg Improved Carbon-fiber Leg Wheel Centrium Wheel Utility Large Storage Unit Device Improved Heat Sink Storage Large Storage Unit Processor Improved Targeting Computer Hackware Relay Coupler [Grunt] Protection Medium Reflective Plating Weapon Cooled Pulse Rifle Energy Gun Cooled Pulse Rifle Energy Cannon Particle Cannon Ballistic Gun Assault Rifle Launcher Heavy Missile Launcher Special Weapon Plasma Cutter Impact Weapon Impact Mace Build | -11 -10 -10 -10 -9 -8 -8 -8 -8 -8 -8 -7 -7 -7 -6 -6 -6 -6 -5 -5 ------- Run | Jun Mat Min Exi Min Mat Gar Mat Gar Mat Gar Fac Gar Fac Fac Was Fac Gar Fac Gar Slots Evolved 10 | . . . . . 4 . . . . . 2 . . 2 . . . 2 . Power 1 | . . . . . . . . . . . . . . . . . . 1 . Propulsion 4 | . . . . . 1 . . . . . 1 . . 1 . . . 1 . Utility 5 | . . . . . 3 . . . . . 1 . . 1 . . . . . Weapon . | . . . . . . . . . . . . . . . . . . . . Parts Attached 182 | . 10 4 . 1 23 16 . 8 19 5 15 26 1 3 6 . 18 12 15 Power 22 | . 1 1 . 1 2 4 . 1 3 . 1 2 . 1 1 . . 1 3 Engine 12 | . 1 1 . 1 2 1 . . 2 . 1 2 . 1 . . . . . Core 7 | . . . . . . 3 . 1 1 . . . . . . . . 1 1 Reactor 3 | . . . . . . . . . . . . . . . 1 . . . 2 Propulsion 49 | . 3 1 . . 8 6 . 3 9 . 3 5 1 . 2 . 2 3 3 Treads 44 | . 3 1 . . 4 6 . 3 9 . 3 4 1 . 2 . 2 3 3 Leg 4 | . . . . . 4 . . . . . . . . . . . . . . Wheel 1 | . . . . . . . . . . . . 1 . . . . . . . Hover . | . . . . . . . . . . . . . . . . . . . . Flight . | . . . . . . . . . . . . . . . . . . . . Utility 43 | . 3 . . . 5 3 . 3 5 3 4 10 . 1 1 . . 3 2 Device 14 | . 1 . . . 1 1 . 1 1 . 2 4 . 1 1 . . 1 . Storage 3 | . 1 . . . 1 . . . 1 . . . . . . . . . . Processor 5 | . 1 . . . 1 . . . 2 . 1 . . . . . . . . Hackware 3 | . . . . . . . . . . 1 . 1 . . . . . 1 . Protection 18 | . . . . . 2 2 . 2 1 2 1 5 . . . . . 1 2 Artifact . | . . . . . . . . . . . . . . . . . . . . Weapon 68 | . 3 2 . . 8 3 . 1 2 2 7 9 . 1 2 . 16 5 7 Energy Gun 29 | . . . . . 4 . . . 2 1 5 4 . 1 1 . 7 2 2 Energy Cannon 9 | . 3 . . . 2 . . . . . . . . . . . . 1 3 Ballistic Gun 8 | . . 2 . . 2 3 . 1 . . . . . . . . . . . Ballistic Cannon . | . . . . . . . . . . . . . . . . . . . . Launcher 7 | . . . . . . . . . . 1 1 3 . . . . . . 2 Special Weapon 10 | . . . . . . . . . . . . . . . 1 . 7 2 . Impact Weapon 5 | . . . . . . . . . . . 1 2 . . . . 2 . . Slashing Weapon . | . . . . . . . . . . . . . . . . . . . . Piercing Weapon . | . . . . . . . . . . . . . . . . . . . . Special Melee Weapon . | . . . . . . . . . . . . . . . . . . . . Unidentified Prototypes 8 | . . . . . 3 . . . 1 . 4 . . . . . . . . Parts Lost 34 | . 1 1 . . 1 5 . 2 10 1 . 7 . . . . . . 6 Power 4 | . . . . . . 1 . . 2 . . . . . . . . . 1 Propulsion 10 | . 1 1 . . 1 1 . . 4 . . 2 . . . . . . . Utility 14 | . . . . . . 3 . 1 2 . . 4 . . . . . . 4 Weapon 6 | . . . . . . . . 1 2 1 . 1 . . . . . . 1 Highest Loss Streak 6 | . 1 1 . . 1 2 . 1 5 1 . 4 . . . . . . 6 To Critical Strikes 1 | . . . . . 1 . . . . . . . . . . . . . . Average Slot Usage (%) 96 | . 97 100 100 100 99 96 100 99 99 100 96 98 100 93 92 86 86 87 85 Engine 6 | . 14 14 14 14 9 4 9 5 4 9 7 6 7 6 3 . . 4 . Core 1 | . . . . . . 3 . 3 4 . . . . . . . . . 3 Reactor 1 | . . . . . . . . . . . . . . . 2 6 6 5 6 Treads 22 | . 3 28 28 28 16 14 27 26 26 27 30 28 23 20 19 13 13 22 21 Leg 2 | . 23 . . . 9 10 . . . . . . . . . . . . . Wheel 1 | . . . . . . . . . . . . 1 7 6 6 6 6 . . Device 8 | . 3 . . . 9 8 9 9 8 9 12 8 7 13 13 13 13 8 11 Storage 8 | . 14 14 14 14 9 9 9 9 9 9 7 7 7 6 6 6 6 5 5 Processor 11 | . 9 14 14 14 18 18 18 18 18 11 8 7 7 6 6 6 6 5 5 Hackware 1 | . . . . . . . . . . . . 3 7 6 6 6 6 6 . Protection 9 | . . . . . 9 9 9 8 9 15 12 16 15 13 13 13 13 12 16 Energy Gun 7 | . 3 . . . 8 2 . . 10 17 14 13 7 7 9 13 11 7 8 Energy Cannon 2 | . 19 8 . . 6 . . . . . . . . . . . . 1 2 Ballistic Gun 7 | . 3 19 28 28 3 15 18 18 7 . . . . . . . . . . Naked Turns . | . . . . . . . . . . . . . . . . . . . . Heaviest Build 105 | 14 34 33 29 29 37 46 38 41 41 43 57 57 54 56 62 62 62 84 105 Greatest Support 230 | 20 40 40 40 40 62 60 60 60 62 60 80 88 16 16 16 16 150 206 230 Greatest Overweight (x) 3 | . 1 . . . . . . . . . . 3 3 3 3 3 3 . . Average Overweight (x) . | . . . . . . . . . . . . . 3 3 3 3 2 . . Largest Inventory Capacity 15 | . 15 15 15 15 15 15 15 15 15 15 15 15 15 15 15 15 15 15 15 Average Capacity 14 | . 14 15 15 15 15 15 15 15 15 15 15 15 15 15 15 15 15 15 15 Most Carried 15 | . 14 13 12 15 15 15 15 15 15 15 15 15 15 14 15 15 15 15 15 Average Carried 13 | . 10 11 12 14 14 14 15 14 14 13 14 14 14 13 13 15 14 14 14 Final Capacity 15 | 8 15 15 15 15 15 15 15 15 15 15 15 15 15 15 15 15 15 15 15 Final Carried 15 | 6 12 12 12 15 15 15 15 15 15 14 15 14 14 13 15 15 14 15 11 Class Distribution -------------------- 51% | Scavenger-Mutant 37% | Mutant 10% | Commander-Mutant Dominant Class ---------------- Mutant | -10/Materials Mutant | -10/Mines Mutant | -10/Exiles Mutant | -9/Mines Mutant | -8/Materials Scavenger-Mutant | -8/Garrison Scavenger-Mutant | -8/Materials Scavenger-Mutant | -8/Garrison Scavenger-Mutant | -8/Materials Scavenger-Mutant | -8/Garrison Mutant | -7/Factory Scavenger-Mutant | -7/Garrison Scavenger-Mutant | -7/Factory Scavenger-Mutant | -6/Factory Scavenger-Mutant | -6/Waste Scavenger-Mutant | -6/Factory Commander-Mutant | -6/Garrison Commander-Mutant | -5/Factory Scavenger-Mutant | -5/Garrison Resources | -11 -10 -10 -10 -9 -8 -8 -8 -8 -8 -8 -7 -7 -7 -6 -6 -6 -6 -5 -5 ----------- Run | Jun Mat Min Exi Min Mat Gar Mat Gar Mat Gar Fac Gar Fac Fac Was Fac Gar Fac Gar Matter Collected 4150 | 200 117 119 . 82 370 612 . 596 632 83 108 412 67 30 50 . 160 182 330 Remotely . | . . . . . . . . . . . . . . . . . . . . Salvage Created 8558 | . 418 369 . 136 924 1137 . 934 1372 259 185 1008 9 69 485 . 366 51 836 Parts 381 | . 27 28 . 12 27 66 . 44 67 17 8 28 . 5 8 . 15 2 27 Haulers Intercepted 6 | . 2 . . . 2 . . . 2 . . . . . . . . . . Recyclers Shooed 2 | . . . . . 1 . . . . . 1 . . . . . . . . Parts Field Recycled . | . . . . . . . . . . . . . . . . . . . . Retrieved Matter . | . . . . . . . . . . . . . . . . . . . . Parts Self-Destructed . | . . . . . . . . . . . . . . . . . . . . Prevented . | . . . . . . . . . . . . . . . . . . . . Kills | -11 -10 -10 -10 -9 -8 -8 -8 -8 -8 -8 -7 -7 -7 -6 -6 -6 -6 -5 -5 ------- Run | Jun Mat Min Exi Min Mat Gar Mat Gar Mat Gar Fac Gar Fac Fac Was Fac Gar Fac Gar Combat Hostiles Destroyed 176 | . 10 12 . 6 10 25 . 25 26 13 5 24 . 1 . . 1 1 17 Guns 128 | . 2 5 . 6 5 25 . 25 25 12 1 18 . 1 . . . . 3 Cannons 21 | . 7 7 . . 4 . . . . . . . . . . . . 1 2 AOE 22 | . 1 . . . . . . . . 1 4 6 . . . . . . 10 Classes Destroyed 20 | . 5 . . . 5 4 . . 3 . . 2 1 . . . . . . Worker 1 | . . . . . 1 . . . . . . . . . . . . . . Builder 3 | . 2 . . . . . . . 1 . . . . . . . . . . Tunneler 1 | . . . . . . . . . . . . . 1 . . . . . . Hauler 6 | . 2 . . . 2 . . . 2 . . . . . . . . . . Recycler 3 | . . . . . 3 . . . . . . . . . . . . . . Mechanic 1 | . 1 . . . . . . . . . . . . . . . . . . Operator 2 | . . . . . 2 . . . . . . . . . . . . . . Watcher 1 | . . . . . . . . . 1 . . . . . . . . . . Swarmer 44 | . 6 6 . 4 . . . 13 4 11 . . . . . . . . . Cutter 6 | . . . . . . 3 . . . . . . . . . . . . 3 Grunt 80 | . 4 6 . 2 5 11 . 10 10 2 3 16 . . . . . 1 10 Brawler 6 | . . . . . . . . . 3 . 1 2 . . . . . . . Duelist 6 | . . . . . . 2 . 1 1 . . 2 . . . . . . . Protector 1 | . . . . . . 1 . . . . . . . . . . . . . Sentry 23 | . . . . . 3 7 . 1 4 . 1 1 . 1 . . 1 . 4 Demolisher 1 | . . . . . . 1 . . . . . . . . . . . . . Specialist 2 | . . . . . . . . . 2 . . . . . . . . . . Hunter 4 | . . . . . 2 . . . 2 . . . . . . . . . . Programmer 2 | . . . . . . . . . . . . 2 . . . . . . . Behemoth 1 | . . . . . . . . . . . . 1 . . . . . . . Savage 1 | . . . . . . . . . . . . . . . . . . . 1 Martyr 3 | . . . . . . . . . . . . . . . 3 . . . . Best Kill Streak 10 | . 6 3 . 4 5 7 . 10 5 8 4 9 1 1 . . 1 1 8 Combat Bots Only 10 | . 4 3 . 4 2 7 . 10 5 8 4 9 . 1 . . 1 1 8 Max Kills in Single Turn 3 | . 2 1 . 2 2 2 . 2 1 1 3 2 1 1 1 . 1 1 3 Gunslinging 1 | . . . . 1 . 1 . 1 . . . 1 . . . . . . . Exploded 3 | . 1 . . . . . . . . 1 3 2 . . . . . . 3 Melee . | . . . . . . . . . . . . . . . . . . . . Uniques/NPCs Destroyed . | . . . . . . . . . . . . . . . . . . . . Combat | -11 -10 -10 -10 -9 -8 -8 -8 -8 -8 -8 -7 -7 -7 -6 -6 -6 -6 -5 -5 -------- Run | Jun Mat Min Exi Min Mat Gar Mat Gar Mat Gar Fac Gar Fac Fac Was Fac Gar Fac Gar Damage Taken 11758 | . 404 427 . 124 641 1463 . 560 1611 558 94 2137 . 43 . . 433 81 3182 Core 1261 | . 61 100 . 7 72 183 . 38 156 64 15 196 . . . . . . 369 Absorbed by Shields 230 | . . . . . . . . . . . 46 113 . . . . 24 . 47 Redirected to Shielding 17 | . . . . . . . . . . . . 17 . . . . . . . Regen/Repaired (Parts) 324 | . 98 . . . . . . . . . . . . . 70 . 107 45 4 Core Remaining (%) 61 | 100 . . . 32 . . . . . 6 . . 69 . . . 100 . . Volleys Fired 582 | . 28 24 2 10 42 69 . 62 85 34 9 79 . 2 38 2 48 13 35 Largest 2 | . 2 2 2 2 2 2 . 2 2 2 2 2 . 2 2 2 2 2 2 Hottest 240 | . 136 136 40 40 136 122 . 53 122 122 122 121 . 40 40 80 80 114 240 Shots Fired 1100 | . 56 48 4 20 84 133 . 124 171 64 12 146 . 4 76 4 73 19 62 Gun 931 | . 28 22 4 20 52 133 . 124 171 61 9 136 . 4 60 4 52 9 42 Cannon 101 | . 28 26 . . 32 . . . . . . . . . . . . 3 12 Launcher 24 | . . . . . . . . . . 3 3 10 . . . . . . 8 Special 44 | . . . . . . . . . . . . . . . 16 . 21 7 . Kinetic 440 | . 14 22 4 20 36 113 . 124 107 . . . . . . . . . . Thermal 601 | . 28 26 . . 46 20 . . 64 61 9 136 . 4 76 4 64 9 54 Explosive 24 | . . . . . . . . . . 3 3 10 . . . . . . 8 Electromagnetic 19 | . 14 . . . 2 . . . . . . . . . . . . 3 . Robot Hit Streak 33 | . 7 16 . 7 20 33 . 32 19 17 7 29 . 4 24 . 24 4 24 Robot Miss Streak 6 | . 5 6 . 3 2 1 . 1 3 6 1 2 . . 1 . 1 2 2 Penetration Max . | . . . . . . . . . . . . . . . . . . . . Secondary Targets 22 | . . 1 . 2 1 5 . 2 5 3 . 3 . . . . . . . Max Gunslinging Chain 1 | . . 1 . 1 1 1 . 1 1 1 . 1 . . . . . . . Shots Hit Robots 814 | . 28 31 . 14 66 111 . 85 134 37 10 104 1 4 69 . 53 13 54 Core Hits 402 | . 17 19 . 9 25 49 . 45 54 22 10 56 . 3 31 . 18 5 39 Critical Kills 1 | . . . . . . 1 . . . . . . . . . . . . . Critical Parts Destroyed 1 | . . . . . . . . . 1 . . . . . . . . . . Critical Strikes 32 | . . . . . 1 2 . . 6 4 . 6 . . 3 . 6 2 2 Burn 28 | . . . . . 1 1 . . 5 4 . 6 . . 2 . 5 2 2 Destroy 2 | . . . . . . 1 . . 1 . . . . . . . . . . Sever 2 | . . . . . . . . . . . . . . . 1 . 1 . . Melee Attacks 10 | . . . . . . . . . . . . 5 1 . . . 4 . . Impact 10 | . . . . . . . . . . . . 5 1 . . . 4 . . Slashing . | . . . . . . . . . . . . . . . . . . . . Piercing . | . . . . . . . . . . . . . . . . . . . . Sneak Attacks 1 | . . . . . . . . . . . . . 1 . . . . . . Combat Hostiles . | . . . . . . . . . . . . . . . . . . . . Follow-up Attacks . | . . . . . . . . . . . . . . . . . . . . Damage Inflicted 19954 | . 908 544 . 185 1354 2039 . 1344 2525 1265 707 3135 146 76 1278 . 833 268 3347 Guns 13084 | . 200 260 . 171 846 2039 . 1334 2525 680 139 2182 . 76 1101 . 691 133 707 Cannons 1709 | . 387 268 . . 489 . . . . . . . . . . . . 128 437 Explosions 4628 | . 319 . . . . . . . . 585 568 953 . . . . . . 2203 Melee 146 | . . . . . . . . . . . . . 146 . . . . . . Ramming 76 | . 2 16 . 14 19 . . 10 . . . . . . . . 8 7 . Kinetic 5718 | . 98 260 . 171 591 1739 . 1334 1525 . . . . . . . . . . Thermal 9121 | . 387 268 . . 709 300 . . 1000 680 139 2182 . 76 1278 . 825 133 1144 Explosive 4628 | . 319 . . . . . . . . 585 568 953 . . . . . . 2203 Electromagnetic 265 | . 102 . . . 35 . . . . . . . . . . . . 128 . Impact 146 | . . . . . . . . . . . . . 146 . . . . . . Slashing . | . . . . . . . . . . . . . . . . . . . . Piercing . | . . . . . . . . . . . . . . . . . . . . Highest Corruption 4 | . . . . . 2 2 2 2 2 2 . 1 1 . . . . 4 4 Average Corruption 1 | . . . . . 1 2 2 2 2 2 . 1 1 . . . . 4 4 Corruption Purged . | . . . . . . . . . . . . . . . . . . . . Corruption Blocked . | . . . . . . . . . . . . . . . . . . . . Effects 76 | . . . . . 1 14 1 8 19 6 . 11 . . . . . 5 11 Message Errors 16 | . . . . . . 4 . 3 3 1 . 4 . . . . . . 1 Matter Fused 26 | . . . . . 1 4 . 3 9 . . 2 . . . . . 3 4 Heat Flow Errors 4 | . . . . . . 1 . . 1 . . 1 . . . . . . 1 Energy Discharges 10 | . . . . . . 2 . . 1 3 . 1 . . . . . 1 2 Data Loss (minor) 10 | . . . . . . 1 1 2 3 1 . . . . . . . . 2 Data Loss (major) 5 | . . . . . . 2 . . 1 . . 1 . . . . . 1 . Misfires 2 | . . . . . . . . . 1 . . 1 . . . . . . . Alerts 1 | . . . . . . . . . . . . . . . . . . . 1 Weapon Failures 2 | . . . . . . . . . . 1 . 1 . . . . . . . Overload Shots 17 | . . . . . . . . . . . . 11 . . . 2 4 . . Effects 1 | . . . . . . . . . . . . 1 . . . . . . . Energy Bleed 1 | . . . . . . . . . . . . 1 . . . . . . . Overflow Damage 267 | . 61 2 . . . . . . . . 22 10 106 . . . . . 66 Projectiles 2 | . . 2 . . . . . . . . . . . . . . . . . Explosions 159 | . 61 . . . . . . . . . 22 10 . . . . . . 66 Melee 106 | . . . . . . . . . . . . . 106 . . . . . . Knockbacks 3 | . . . . . . . . 3 . . . . . . . . . . . Impact 3 | . . . . . . . . 3 . . . . . . . . . . . Kinetic . | . . . . . . . . . . . . . . . . . . . . Secondary . | . . . . . . . . . . . . . . . . . . . . Self-Inflicted Damage 189 | . . . . . . . . . . 70 5 28 . . . . . . 86 Shots 6 | . . . . . . . . . . 3 1 1 . . . . . . 1 Rammed 11 | . . 4 . 1 . . . 4 . . . . . . . . 1 1 . Targets Rammed 15 | . 2 4 . 1 2 . . 4 . . . . . . . . 1 1 . Kicked 4 | . 2 . . . 2 . . . . . . . . . . . . . . Crushed . | . . . . . . . . . . . . . . . . . . . . Highest Temperature 549 | . 306 300 . 16 120 355 . . 147 300 21 180 . . . . . . 549 Average Temperature 89 | . 92 144 . 7 44 110 . . 56 85 14 30 . . . . . . 196 Received Heat Transfer 3422 | . 159 102 . 39 225 603 . 162 513 99 24 689 . 18 . . 140 9 640 Effects 5 | . . 1 . . . . . . . . . . . . . . . . 4 Shutdowns 2 | . . . . . . . . . . . . . . . . . . . 2 Energy Bleed 1 | . . 1 . . . . . . . . . . . . . . . . . Interference 1 | . . . . . . . . . . . . . . . . . . . 1 Damage (core) 1 | . . . . . . . . . . . . . . . . . . . 1 Siege Activations 2 | . . . . . . . . . . . . . . . . . . . 2 Total Turns 7 | . . . . . . . . . . . . . . . . . . . 7 Longest Duration 5 | . . . . . . . . . . . . . . . . . . . 5 Robots Corrupted . | . . . . . . . . . . . . . . . . . . . . Combat Hostiles . | . . . . . . . . . . . . . . . . . . . . Parts Fried 1 | . . . . . . . . . . . . . 1 . . . . . . Impact Corruptions 3 | . . . . . . . . . . . . . 3 . . . . . . Robots Melted 6 | . . . . . 1 . . . 1 . . . . . . . 2 . 2 Combat Hostiles 5 | . . . . . 1 . . . 1 . . . . . . . 1 . 2 Parts Melted 38 | . 1 . . . 3 2 . . 6 3 . 10 . . . . 6 . 7 Heat Transferred 18727 | . 703 481 . . 1369 629 . . 2220 1440 259 4250 . 148 2886 . 2048 407 1887 Parts Sabotaged . | . . . . . . . . . . . . . . . . . . . . Parts Stolen . | . . . . . . . . . . . . . . . . . . . . Parts Stripped . | . . . . . . . . . . . . . . . . . . . . Power Chain Reactions . | . . . . . . . . . . . . . . . . . . . . Missiles Intercepted . | . . . . . . . . . . . . . . . . . . . . Alert | -11 -10 -10 -10 -9 -8 -8 -8 -8 -8 -8 -7 -7 -7 -6 -6 -6 -6 -5 -5 ------- Run | Jun Mat Min Exi Min Mat Gar Mat Gar Mat Gar Fac Gar Fac Fac Was Fac Gar Fac Gar Peak Influence 1288 | . 197 315 . 140 270 886 482 1288 942 763 539 1031 546 324 113 2 1226 860 1264 Initial 643 | . . 75 . . . 123 431 300 627 408 400 237 541 267 113 . 1 643 518 Average 537 | . 95 174 . 98 97 534 445 815 764 622 392 750 542 281 95 . 897 654 770 Maximum Alert Level 4 | . . 1 . . 1 3 2 4 3 3 2 3 2 1 . . 4 3 4 Low Security (%) 28 | . 100 77 . 100 95 13 . . . . . . . . 100 100 8 . . Level 1 11 | . . 22 . . 4 29 . 6 . . 47 10 . 100 . . 4 3 . Level 2 22 | . . . . . . 24 100 32 16 65 52 27 100 . . . . 63 59 Level 3 35 | . . . . . . 32 . 51 83 34 . 61 . . . . 70 33 31 Level 4 2 | . . . . . . . . 9 . . . . . . . . 15 . 8 Level 5 . | . . . . . . . . . . . . . . . . . . . . High Security . | . . . . . . . . . . . . . . . . . . . . Max Security . | . . . . . . . . . . . . . . . . . . . . Squads Dispatched 11 | . 2 . . . . . . . 5 . . . . 1 . . . 3 . Investigation 2 | . 1 . . . . . . . . . . . . 1 . . . . . Extermination 1 | . . . . . . . . . . . . . . . . . . 1 . Reinforcement 6 | . 1 . . . . . . . 3 . . . . . . . . 2 . Assault 2 | . . . . . . . . . 2 . . . . . . . . . . Garrison . | . . . . . . . . . . . . . . . . . . . . Intercept . | . . . . . . . . . . . . . . . . . . . . Searches Triggered . | . . . . . . . . . . . . . . . . . . . . Construction Impeded . | . . . . . . . . . . . . . . . . . . . . Haulers Reinforced . | . . . . . . . . . . . . . . . . . . . . Active Scanning Responses . | . . . . . . . . . . . . . . . . . . . . Cargo Convoy Interrupts . | . . . . . . . . . . . . . . . . . . . . Stealth | -11 -10 -10 -10 -9 -8 -8 -8 -8 -8 -8 -7 -7 -7 -6 -6 -6 -6 -5 -5 --------- Run | Jun Mat Min Exi Min Mat Gar Mat Gar Mat Gar Fac Gar Fac Fac Was Fac Gar Fac Gar Distress Signals 8 | . 1 . . . . . . . 4 . 1 1 . . . . . 1 . Communications Jammed . | . . . . . . . . . . . . . . . . . . . . Distress Signals . | . . . . . . . . . . . . . . . . . . . . Times Spotted 289 | . 21 12 . 6 19 25 2 36 42 15 8 28 . 1 1 . 32 11 30 Peak Tracking Total 14 | . 5 3 9 4 9 5 2 7 5 4 4 5 . 1 1 . 5 7 14 Tactical Retreats 11 | . 1 . . . 1 . . 3 . 1 . 1 . . . . 2 . 2 Traps | -11 -10 -10 -10 -9 -8 -8 -8 -8 -8 -8 -7 -7 -7 -6 -6 -6 -6 -5 -5 ------- Run | Jun Mat Min Exi Min Mat Gar Mat Gar Mat Gar Fac Gar Fac Fac Was Fac Gar Fac Gar Traps Triggered 16 | . . . . . 2 2 . 5 . . 2 2 . 1 . . 1 1 . Indirectly . | . . . . . . . . . . . . . . . . . . . . Trap Hack Attempts . | . . . . . . . . . . . . . . . . . . . . Triggered . | . . . . . . . . . . . . . . . . . . . . Disarmed . | . . . . . . . . . . . . . . . . . . . . Reprogrammed . | . . . . . . . . . . . . . . . . . . . . Reused . | . . . . . . . . . . . . . . . . . . . . Traps Extracted . | . . . . . . . . . . . . . . . . . . . . Installed . | . . . . . . . . . . . . . . . . . . . . Triggered 1 | . . . . . . . . . . . . . . . . . 1 . . Machines | -11 -10 -10 -10 -9 -8 -8 -8 -8 -8 -8 -7 -7 -7 -6 -6 -6 -6 -5 -5 ---------- Run | Jun Mat Min Exi Min Mat Gar Mat Gar Mat Gar Fac Gar Fac Fac Was Fac Gar Fac Gar Machines Disabled 19 | . 1 . 3 . . 4 1 . 1 1 . 3 . . . . 1 2 2 Max in Single Turn 2 | . 1 . 2 . . 1 . . . 1 . 1 . . . . 1 . 1 Garrison Relay 8 | . . . . . . 4 . . . 1 . 2 . . . . 1 . . Machines Repaired . | . . . . . . . . . . . . . . . . . . . . Machines Sabotaged . | . . . . . . . . . . . . . . . . . . . . Overloaded Fab Kills . | . . . . . . . . . . . . . . . . . . . . Hacking | -11 -10 -10 -10 -9 -8 -8 -8 -8 -8 -8 -7 -7 -7 -6 -6 -6 -6 -5 -5 --------- Run | Jun Mat Min Exi Min Mat Gar Mat Gar Mat Gar Fac Gar Fac Fac Was Fac Gar Fac Gar Machines Accessed 36 | . 3 . 2 . 6 4 1 3 6 . 2 2 1 2 . 1 1 1 1 Terminals 24 | . 2 . . . 4 4 . 3 4 . 1 2 . 2 . . 1 . 1 Fabricators 1 | . . . . . . . . . . . . . 1 . . . . . . Repair Stations 2 | . 1 . . . . . . . 1 . . . . . . . . . . Recycling Units . | . . . . . . . . . . . . . . . . . . . . Scanalyzers 1 | . . . . . 1 . . . . . . . . . . . . . . Garrison Access 6 | . . . . . 1 . 1 . 1 . 1 . . . . 1 . 1 . Total Hacks 75 | . 12 . 2 . 17 6 1 4 15 . 2 2 1 8 . 1 1 1 2 Successful 35 | . 5 . 2 . 8 3 1 1 8 . 1 1 . 2 . 1 . 1 1 Failed 40 | . 7 . . . 9 3 . 3 7 . 1 1 1 6 . . 1 . 1 Catastrophic 15 | . 1 . . . 4 2 . 1 1 . 1 1 . 2 . . 1 . 1 Database Lockouts . | . . . . . . . . . . . . . . . . . . . . Manual 26 | . 5 . 1 . 9 . . . 9 . 1 . . 1 . . . . . Terminals 52 | . 7 . . . 9 6 . 4 12 . 1 2 . 8 . . 1 . 2 Fabricators 1 | . . . . . . . . . . . . . 1 . . . . . . Repair Stations 7 | . 5 . . . . . . . 2 . . . . . . . . . . Recycling Units . | . . . . . . . . . . . . . . . . . . . . Scanalyzers 7 | . . . . . 7 . . . . . . . . . . . . . . Garrison Access 6 | . . . . . 1 . 1 . 1 . 1 . . . . 1 . 1 . Terminal Hacks 16 | . 1 . 2 . 1 3 . 1 5 . . 1 . 1 . . . . 1 Record 1 | . . . 1 . . . . . . . . . . . . . . . . Open Door 4 | . . . . . . 1 . 1 . . . 1 . . . . . . 1 Branch Access Points 3 | . 1 . . . 1 . . . . . . . . 1 . . . . . Unreport Threat 2 | . . . . . . . . . 2 . . . . . . . . . . Reinforcement Status 1 | . . . . . . . . . 1 . . . . . . . . . . Zone Layout 2 | . . . . . . . . . 2 . . . . . . . . . . Garrison Registry 1 | . . . . . . 1 . . . . . . . . . . . . . Patrol Navigation 1 | . . . . . . 1 . . . . . . . . . . . . . EX-Prototype ID Bank 1 | . . . 1 . . . . . . . . . . . . . . . . Fabricator Hacks . | . . . . . . . . . . . . . . . . . . . . Repair Station Hacks 5 | . 4 . . . . . . . 1 . . . . . . . . . . Scan Component 3 | . 2 . . . . . . . 1 . . . . . . . . . . Repair 2 | . 2 . . . . . . . . . . . . . . . . . . Recycling Unit Hacks . | . . . . . . . . . . . . . . . . . . . . Scanalyzer 5 | . . . . . 5 . . . . . . . . . . . . . . Insert Component 2 | . . . . . 2 . . . . . . . . . . . . . . Analyze 3 | . . . . . 3 . . . . . . . . . . . . . . Garrison Access Hacks 6 | . . . . . 1 . 1 . 1 . 1 . . . . 1 . 1 . Unlock Access 6 | . . . . . 1 . 1 . 1 . 1 . . . . 1 . 1 . Unauthorized Hacks 3 | . . . . . 1 . . . 1 . . . . 1 . . . . . Terminals 3 | . . . . . 1 . . . 1 . . . . 1 . . . . . Botnet 3 | . . . . . 1 . . . 1 . . . . 1 . . . . . Fabricators . | . . . . . . . . . . . . . . . . . . . . Repair Stations . | . . . . . . . . . . . . . . . . . . . . Recycling Units . | . . . . . . . . . . . . . . . . . . . . Scanalyzers . | . . . . . . . . . . . . . . . . . . . . Garrison Access . | . . . . . . . . . . . . . . . . . . . . Data Cores Recovered 3 | . . . . . 2 . . . . . . . . . . . . 1 . Used . | . . . . . . . . . . . . . . . . . . . . Hacking Detections 30 | . 3 . . . 6 3 . 3 5 . 2 1 1 2 . 1 1 1 1 Full Trace Events 3 | . 1 . . . . 1 . . . . . . . 1 . . . . . Feedback Events . | . . . . . . . . . . . . . . . . . . . . Feedback Blocked . | . . . . . . . . . . . . . . . . . . . . Robot Schematics Acquired . | . . . . . . . . . . . . . . . . . . . . Robots Built . | . . . . . . . . . . . . . . . . . . . . Authchips . | . . . . . . . . . . . . . . . . . . . . Time . | . . . . . . . . . . . . . . . . . . . . Total Robot Build Rating . | . . . . . . . . . . . . . . . . . . . . Part Schematics Acquired 2 | . . . . . 2 . . . . . . . . . . . . . . Parts Built . | . . . . . . . . . . . . . . . . . . . . Authchips . | . . . . . . . . . . . . . . . . . . . . Time . | . . . . . . . . . . . . . . . . . . . . Total Part Build Rating . | . . . . . . . . . . . . . . . . . . . . Parts Repaired 2 | . 2 . . . . . . . . . . . . . . . . . . Time 58 | . 58 . . . . . . . . . . . . . . . . . . Parts Recycled . | . . . . . . . . . . . . . . . . . . . . Recycled Matter . | . . . . . . . . . . . . . . . . . . . . Retrieved Matter . | . . . . . . . . . . . . . . . . . . . . Retrieved Components . | . . . . . . . . . . . . . . . . . . . . Parts Scanalyzed 2 | . . . . . 2 . . . . . . . . . . . . . . Part Schematics Acquired 2 | . . . . . 2 . . . . . . . . . . . . . . Parts Damaged 1 | . . . . . 1 . . . . . . . . . . . . . . Bothacking | -11 -10 -10 -10 -9 -8 -8 -8 -8 -8 -8 -7 -7 -7 -6 -6 -6 -6 -5 -5 ------------ Run | Jun Mat Min Exi Min Mat Gar Mat Gar Mat Gar Fac Gar Fac Fac Was Fac Gar Fac Gar Used RIF Installer 6 | . . . . . . 1 . 1 . 1 . 1 . . . . 2 . . Hotswap 1 | . . . . . . . . 1 . . . . . . . . . . . Command Fork 1 | . . . . . . . . . . 1 . . . . . . . . . Robot Detection 1 | . . . . . . . . . . . . 1 . . . . . . . Structural Interface 1 | . . . . . . . . . . . . . . . . . 1 . . Program Shield 1 | . . . . . . . . . . . . . . . . . 1 . . Robots Hacked 12 | . . . . . . . . . . . . . . . . . 8 4 . Non-combat 1 | . . . . . . . . . . . . . . . . . . 1 . Combat 11 | . . . . . . . . . . . . . . . . . 8 3 . Robot Hacks Applied 13 | . . . . . . . . . . . . . . . . . 8 5 . parse_system 2 | . . . . . . . . . . . . . . . . . 1 1 . purge_threat 2 | . . . . . . . . . . . . . . . . . . 2 . overwrite_iff 4 | . . . . . . . . . . . . . . . . . 2 2 . formatsys_high 5 | . . . . . . . . . . . . . . . . . 5 . . Relay Couplers Released 31 | . . . . . . 16 . . . 3 . 7 . . . . 5 . . Machine Destruction 31 | . . . . . . 16 . . . 3 . 7 . . . . 5 . . Attached 3 | . . . . . . . . . . 1 . 1 . . . . . 1 . Fabnet Peak Effective % . | . . . . . . . . . . . . . . . . . . . . Robots Rewired 12 | . . . . . . . . 3 . . . . . . . . 6 . 3 Allies Hacked 1 | . . . . . . . . . . . . . . . . . . 1 . Hacks Repelled . | . . . . . . . . . . . . . . . . . . . . Allies | -11 -10 -10 -10 -9 -8 -8 -8 -8 -8 -8 -7 -7 -7 -6 -6 -6 -6 -5 -5 -------- Run | Jun Mat Min Exi Min Mat Gar Mat Gar Mat Gar Fac Gar Fac Fac Was Fac Gar Fac Gar Total Allies 48 | . . . . . . 2 . 3 . . . 1 . . 20 . 17 2 3 Largest Group 20 | . . . . . . 2 2 3 1 . . 1 . . 20 16 18 17 3 Highest-Rated Group 749 | . . . . . . 59 59 79 34 . . 31 . . 749 574 666 636 109 Highest-Rated Ally 95 | . . . . . . 39 39 39 34 . . 31 . . 50 50 95 95 51 Total Orders . | . . . . . . . . . . . . . . . . . . . . Ally Attacks 340 | . . . . . . . 7 45 18 . . 9 . . 10 . 154 74 23 Total Damage 8220 | . . . . . . . 122 754 439 . . 118 . . 279 . 3352 2459 697 Kills 74 | . . . . . . . 1 11 6 . . . . . 1 . 31 19 5 Allies Corrupted 1 | . . . . . . . . . . . . . . . . . . 1 . Allies Melted . | . . . . . . . . . . . . . . . . . . . . Intel | -11 -10 -10 -10 -9 -8 -8 -8 -8 -8 -8 -7 -7 -7 -6 -6 -6 -6 -5 -5 ------- Run | Jun Mat Min Exi Min Mat Gar Mat Gar Mat Gar Fac Gar Fac Fac Was Fac Gar Fac Gar Robot Analysis Total . | . . . . . . . . . . . . . . . . . . . . Derelict Logs Recovered 2 | . . 2 . . . . . . . . . . . . . . . . . Drone Launches . | . . . . . . . . . . . . . . . . . . . . Drone Recoveries . | . . . . . . . . . . . . . . . . . . . . Exploration | -11 -10 -10 -10 -9 -8 -8 -8 -8 -8 -8 -7 -7 -7 -6 -6 -6 -6 -5 -5 ------------- Run | Jun Mat Min Exi Min Mat Gar Mat Gar Mat Gar Fac Gar Fac Fac Was Fac Gar Fac Gar Turns Passed 12721 | . 719 836 456 519 724 1143 57 1231 1301 371 758 1553 103 118 471 144 1170 600 447 Spaces Moved 6495 | 1 297 455 282 302 368 642 25 616 651 164 427 782 64 69 218 46 582 332 172 Core . | . . . . . . . . . . . . . . . . . . . . Treads 4672 | . 22 455 282 302 182 332 25 616 651 164 427 629 . . . . 81 332 172 Legs 772 | 1 275 . . . 186 310 . . . . . . . . . . . . . Wheels 1051 | . . . . . . . . . . . . 153 64 69 218 46 501 . . Hover . | . . . . . . . . . . . . . . . . . . . . Flight . | . . . . . . . . . . . . . . . . . . . . Fastest Speed 120 | 120 120 160 160 160 120 120 160 160 155 160 162 150 150 150 150 150 150 160 150 Average Speed 156 | 120 178 160 160 160 139 140 160 160 157 160 162 159 150 150 150 150 151 160 158 Slowest Speed 240 | 120 240 160 160 160 160 160 160 160 160 160 162 163 150 150 150 150 160 162 162 Overloaded Moves . | . . . . . . . . . . . . . . . . . . . . Propulsion Burnouts . | . . . . . . . . . . . . . . . . . . . . Robots Hopped . | . . . . . . . . . . . . . . . . . . . . Cave-ins Triggered . | . . . . . . . . . . . . . . . . . . . . Exploration Rate (%) 41 | 2 58 87 61 44 41 70 6 72 60 35 13 69 2 3 90 2 73 15 29 Regions Visited 19 Branch Regions 3 Pre-discovered Areas 3 | . . 2 1 . . . . . . . . . . . . . . . . Known Exits Taken 7 | . 1 . . . 1 . 1 . 1 . 1 . . . . 1 . 1 . Unknown Exits Taken 5 | 1 . 1 1 1 . . . . . . . . 1 . . . . . . Scrap Searched 2 | . . 1 . 1 . . . . . . . . . . . . . . . Spaces Dug 26 | . . . . . . . . . . . . 19 . . . 2 5 . . Terrain Destroyed 179 | . 16 . . . . . . . . . 26 55 . . . 2 5 . 75 Melee 5 | . . . . . . . . . . . . 2 . . . . 3 . . Projectile 4 | . . . . . . . . . . . . . . . . 2 2 . . AOE 170 | . 16 . . . . . . . . . 26 53 . . . . . . 75 Terrain Rammed . | . . . . . . . . . . . . . . . . . . . . Walls Destroyed . | . . . . . . . . . . . . . . . . . . . . Machines Disabled . | . . . . . . . . . . . . . . . . . . . . Actions | -11 -10 -10 -10 -9 -8 -8 -8 -8 -8 -8 -7 -7 -7 -6 -6 -6 -6 -5 -5 --------- Run | Jun Mat Min Exi Min Mat Gar Mat Gar Mat Gar Fac Gar Fac Fac Was Fac Gar Fac Gar Total 8000 | . 426 513 283 317 504 774 42 762 783 208 484 928 70 80 270 117 775 380 284 Wait 359 | . 77 23 . . 18 28 18 23 5 2 5 10 . 5 2 70 46 15 12 Move 6479 | . 296 454 281 301 368 641 24 615 650 163 427 780 63 69 217 45 581 332 172 Hop . | . . . . . . . . . . . . . . . . . . . . Pick Up 84 | . 7 2 . 3 22 6 . 5 13 1 8 9 2 . 1 . 2 2 1 Fast Attach 71 | . 6 . . . 9 7 . 5 3 2 11 7 1 1 4 . 2 4 9 Attach 53 | . 2 3 . . 12 5 . 2 10 2 1 9 . 1 . . . 2 4 Detach 9 | . 1 . . . 1 1 . . . . 2 1 . . 2 . . 1 . Swap 58 | . 2 1 . 1 2 4 . 1 6 1 3 10 . 1 2 . 16 6 2 Drop 118 | . 5 2 . 1 28 8 . 8 11 3 18 10 3 1 4 . 2 4 10 Fire 582 | . 28 24 2 10 42 69 . 62 85 34 9 79 . 2 38 2 48 13 35 Melee 10 | . . . . . . . . . . . . 5 1 . . . 4 . . Ram . | . . . . . . . . . . . . . . . . . . . . Kick 4 | . 2 . . . 2 . . . . . . . . . . . . . . Crush 11 | . . 4 . 1 . . . 4 . . . . . . . . 1 1 . Escape Stasis 29 | . . . . . . 5 . . . . . 8 . . . . 16 . . Rewire 133 | . . . . . . . . 37 . . . . . . . . 57 . 39 Trap . | . . . . . . . . . . . . . . . . . . . . Miscellaneous . | . . . . . . . . . . . . . . . . . . . . Route ------- -11/Junkyard -10/Materials (discovered 4 exits: [*Mat x2] / *Min x2) -10/Mines (discovered 3 exits: [*Mat x2] / *Exi) -10/Exiles -9/Mines -8/Materials (discovered 2 exits: *Fac / Gar) -8/Garrison (discovered 3 exits: *Mat x3) -8/Materials -8/Garrison (discovered 4 exits: *Fac x3 / *Mat) -8/Materials (discovered 3 exits: *Fac x2 / Gar) -8/Garrison -7/Factory -7/Garrison (discovered 3 exits: *Fac x3) -7/Factory -6/Factory (discovered 2 exits: Low x2) -6/Waste -6/Factory -6/Garrison (discovered 3 exits: *Fac x3) -5/Factory (discovered 2 exits: [*Upp] / Gar) -5/Garrison History --------- Turn | Location | Event 1 | -11/Junkyard | Discovered new exit (range 0) 1 | -11/Junkyard | Entered Materials 110 | -10/Materials | Discovered new exit (range 16) 309 | -10/Materials | Discovered new exit (range 8) 311 | -10/Materials | Build established: Mutant 600 | -10/Materials | Identified exit to Mines 670 | -10/Materials | Repaired Lgt. Treads 704 | -10/Materials | Repaired Particle Cannon 720 | -10/Materials | Entered Mines 770 | -10/Mines | Discovered new exit (range 7) 997 | -10/Mines | Core integrity fell below 50% 1233 | -10/Mines | Discovered new exit (range 8) 1247 | -10/Mines | Learned location of Storage (-9) 1548 | -10/Mines | Deemed a non-threat by the Exiles lab entrance 1549 | -10/Mines | Discovered new exit (range 5) 1556 | -10/Mines | Entered Exiles 1596 | -10/Exiles | Met 8R-AWN 1622 | -10/Exiles | Met EX-HEX 1673 | -10/Exiles | Met EX-BIN 1696 | -10/Exiles | Aligned with FarCom system 1697 | -10/Exiles | Given EX-Vault access code 1736 | -10/Exiles | Opened EX-Vault 1772 | -10/Exiles | Warned to stay clear of 0b10 Research branches 1824 | -10/Exiles | Met EX-DEC 1835 | -10/Exiles | Learned location of Zion (-7) 1878 | -10/Exiles | Discovered new exit (range 14) 1981 | -10/Exiles | Attacked by the Exiles 2012 | -10/Exiles | Entered Mines 2159 | -9/Mines | Discovered new exit (range 9) 2322 | -9/Mines | Found a damaged Exp. Sensor Array with a note attached 2325 | -9/Mines | Found Prototype Device 2531 | -9/Mines | Entered Materials 2531 | -8/Materials | Evolved 4 slots: Propulsion x1, Utility x3 2857 | -8/Materials | Identified Exp. Sensor Array 3095 | -8/Materials | Discovered new exit (range 9) 3255 | -8/Materials | Identified exit to Garrison 3255 | -8/Materials | Entered Garrison 3314 | -8/Garrison | Triggered checkpoint 3322 | -8/Garrison | Garrison Relay disabled 3371 | -8/Garrison | Installed Relay Interface Framework 3386 | -8/Garrison | Triggered checkpoint 3526 | -8/Garrison | Triggered checkpoint 3534 | -8/Garrison | Garrison Relay disabled 3655 | -8/Garrison | Discovered new exit (range 10) 3714 | -8/Garrison | Triggered checkpoint 3792 | -8/Garrison | Triggered checkpoint 3807 | -8/Garrison | Destroyed 7 combat bots 3836 | -8/Garrison | Triggered checkpoint 3862 | -8/Garrison | Discovered new exit (range 73) 3862 | -8/Garrison | Discovered new exit (range 23) 3862 | -8/Garrison | Discovered new exit (range 30) 4044 | -8/Garrison | Garrison Relay disabled 4069 | -8/Garrison | Build established: Scavenger-Mutant 4088 | -8/Garrison | Rescued a captive Derelict 4089 | -8/Garrison | Rescued a captive Derelict 4369 | -8/Garrison | Garrison Relay disabled 4398 | -8/Garrison | Entered Materials 4398 | -8/Materials | Accompanied by 2 allies 4426 | -8/Materials | Identified exit to Garrison 4455 | -8/Materials | Entered Garrison 4455 | -8/Garrison | Accompanied by 1 ally 4500 | -8/Garrison | Triggered checkpoint 4596 | -8/Garrison | Triggered checkpoint 4627 | -8/Garrison | Destroyed 10 combat bots 4864 | -8/Garrison | Triggered checkpoint 4929 | -8/Garrison | Discovered new exit (range 10) 4938 | -8/Garrison | Core integrity fell below 50% 5086 | -8/Garrison | Triggered checkpoint 5248 | -8/Garrison | Triggered checkpoint 5322 | -8/Garrison | Triggered checkpoint 5358 | -8/Garrison | Expanded RIF knowledge: Hotswap 5408 | -8/Garrison | Discovered new exit (range 10) 5539 | -8/Garrison | Discovered new exit (range 12) 5554 | -8/Garrison | Triggered checkpoint 5649 | -8/Garrison | Triggered checkpoint 5674 | -8/Garrison | Discovered new exit (range 6) 5686 | -8/Garrison | Entered Materials 5686 | -8/Materials | Accompanied by 1 ally 6086 | -8/Materials | First assault squad dispatched 6242 | -8/Materials | Lost 5 parts (1p1n1u2w) 6302 | -8/Materials | Discovered new exit (range 15) 6706 | -8/Materials | Core integrity fell below 20% 6816 | -8/Materials | Discovered new exit (range 14) 6982 | -8/Materials | Identified exit to Garrison 6987 | -8/Materials | Entered Garrison 7004 | -8/Garrison | Triggered checkpoint 7057 | -8/Garrison | Garrison Relay disabled 7148 | -8/Garrison | Triggered checkpoint 7197 | -8/Garrison | Destroyed 8 combat bots 7224 | -8/Garrison | Triggered checkpoint 7264 | -8/Garrison | Expanded RIF knowledge: Command Fork 7347 | -8/Garrison | Discovered new exit (range 8) 7358 | -8/Garrison | Entered Factory 7358 | -7/Factory | Evolved 2 slots: Propulsion x1, Utility x1 8040 | -7/Factory | Build established: Mutant 8116 | -7/Factory | Identified exit to Garrison 8116 | -7/Factory | Entered Garrison 8136 | -7/Garrison | Triggered checkpoint 8159 | -7/Garrison | Garrison Relay disabled 8278 | -7/Garrison | Triggered checkpoint 8308 | -7/Garrison | Triggered checkpoint 8359 | -7/Garrison | Destroyed 9 combat bots 8366 | -7/Garrison | Lost 4 parts (1n3u) 8483 | -7/Garrison | Discovered new exit (range 6) 8532 | -7/Garrison | Triggered checkpoint 8596 | -7/Garrison | Build established: Scavenger-Mutant 8634 | -7/Garrison | Rescued a captive Derelict 8686 | -7/Garrison | Triggered checkpoint 8700 | -7/Garrison | Triggered checkpoint 8792 | -7/Garrison | Triggered checkpoint 8829 | -7/Garrison | Garrison Relay disabled 8874 | -7/Garrison | Discovered new exit (range 10) 9026 | -7/Garrison | Triggered checkpoint 9105 | -7/Garrison | Discovered new exit (range 10) 9304 | -7/Garrison | Spotted B-75 Beast 9333 | -7/Garrison | Destroyed B-75 Beast 9482 | -7/Garrison | Expanded RIF knowledge: Robot Detection 9669 | -7/Garrison | Entered Factory 9717 | -7/Factory | Discovered new exit (range 12) 9772 | -7/Factory | Entered another Factory area 9772 | -6/Factory | Evolved 2 slots: Propulsion x1, Utility x1 9839 | -6/Factory | Identified exit to Lower Caves 9890 | -6/Factory | Sucked down chute 9890 | -6/Factory | Entered Waste 9891 | -6/Waste | Joined by Warlord forces that had cleared the area 10267 | -6/Waste | Discovered new exit (range 13) 10340 | -6/Waste | A Compactor rumbled back to life 10342 | -6/Waste | Allies destroyed C-40 Crusher 10361 | -6/Waste | Entered Factory 10361 | -6/Factory | Accompanied by 16 allies 10411 | -6/Factory | Identified exit to Garrison 10505 | -6/Factory | Entered Garrison 10505 | -6/Garrison | Accompanied by 16 allies 10536 | -6/Garrison | Triggered checkpoint 10628 | -6/Garrison | Triggered checkpoint 10658 | -6/Garrison | Triggered checkpoint 10660 | -6/Garrison | Triggered checkpoint 10708 | -6/Garrison | Triggered checkpoint 10712 | -6/Garrison | Triggered checkpoint 10761 | -6/Garrison | Expanded RIF knowledge: Program Shield 10797 | -6/Garrison | Discovered new exit (range 8) 10901 | -6/Garrison | Garrison Relay disabled 11152 | -6/Garrison | Build established: Commander-Mutant 11242 | -6/Garrison | Triggered checkpoint 11278 | -6/Garrison | Discovered new exit (range 13) 11450 | -6/Garrison | Triggered checkpoint 11499 | -6/Garrison | Expanded RIF knowledge: Structural Interface 11560 | -6/Garrison | Found embedded Infiltrators 11618 | -6/Garrison | Discovered new exit (range 13) 11675 | -6/Garrison | Entered Factory 11675 | -5/Factory | Accompanied by 17 allies 11675 | -5/Factory | Evolved 2 slots: Power x1, Propulsion x1 11982 | -5/Factory | Discovered new exit (range 10) 12260 | -5/Factory | Identified exit to Garrison 12275 | -5/Factory | Entered Garrison 12275 | -5/Garrison | Accompanied by 3 allies 12456 | -5/Garrison | Triggered checkpoint 12570 | -5/Garrison | Build established: Scavenger-Mutant 12587 | -5/Garrison | Spotted B-75 Beast 12601 | -5/Garrison | Allies destroyed B-75 Beast 12683 | -5/Garrison | Triggered checkpoint 12683 | -5/Garrison | Triggered checkpoint 12722 | -5/Garrison | Self-destructed Last Messages --------------- 12714_ Slug penetrates Reinforced Barrier. 12714_ Y-64 Sentinel destroyed. 12715_ Penetrated by Slug. 12715_ Hrd. Light Armor Plating destroyed. 12717_ Penetrated by Slug. 12718_ Critical hit (Burn: +37). 12718_ Penetrated by Slug. 12719_ Power failure, Quantum Reactor shutdown. 12719_ Overheating: System interference. 12719_ Enh. Nova Cannon temporarily disabled. 12719_ Penetrated by Slug. 12719_ S-27 Virus suffers critical hit (Destroy). 12719_ S-27 Virus destroyed. 12720_ Power failure, Neutrino Core shutdown. 12720_ The unstable cave ceiling collapses. 12720_ Slug penetrates Reinforced Barrier. 12720_ Acquired 51 matter. 12721_ Overheating: Core damaged (-120). 12721_ Penetrated by Slug. 12722_ Hrd. Medium Armor Plating destroyed. Map ----- +----------------------------------------------------+ | ?????????????????????????????????????????????????? | | ?????????????????????????????????????????????????? | | ?????????????????????????????????????????????????? | | ?????????????????????????????????????????????????? | | ?????????????????????????????????????????????????? | | ?????????????????????????????????????????????????? | | ???????????????????????# #??????????????????????? | | ???????????????????????^ #?????????????????????? | | ?????????????????? ? ?? ?????????????????????? | | ???????????????? ?^ ?????????????????????? | | ????????????? ?# #?????????????????????? | | ????????????? # ## ##????????????????????? | | ????????????" ????????????????????? | | ???????????? % ????????????????????? | | ???????????? ?????????????????????? | | ???????????? ?????????????????????? | | ????????????# # # ###???????????????????? | | ???????????# Y ##########??????????? | | ??????????? Y%!Y #??????????? | | ???????????? *g*%%] #?###??????? | | ????????????????? ]%!=%! +? #??????? | | ??????????????????????#!%!* ##+#??# #?# #??????? | | ??????????????????????#[%Y # #??# #?# #??????? | | ????????????????????### ! # #??# #?# #??????? | | ????????????????????# # #??# #?# #??????? | | ???????????????????# # @= #??# ###+##??#### | | ???????????????????## #??# ##% #??#""" | | ???????????????????# [% #### ##=% ##### | | ???????????????????## = + *%[% | | ????????????????????# =%= + = | | ???????????????????# # ### ############ | | ???????????????????# ##?# #??????????? | | ???????????????????## #??# #??????????? | | ????????????????????#### ##?# #??????????? | | ?????????????????????#"" ""#?# #??????????? | | ?????????????????????#"= [ "#?# #??????????? | | ?????????????????????#"= ####*="#?# #??????????? | | ?????????????????????#" *# *#= "#?# #??????????? | | ?????????????????????#"! #[ #=["#?# #??????????? | | ?????????????????????#"= # =# "#?# #??????????? | | ?????????????????????#" [ ="#?# #??????????? | | ?????????????????????#"" = ""#?# #??????????? | | ?????????????????????#"""= =="""#?# #??????????? | | ?????????????????????#""" "" """#?# #??????????? | | ?????????????????????############?# #??????????? | | ??????????????????????????????????# #??????????? | | ?????????????????????????????####?# #??????????? | | ?????????????????????????##### ### #??????????? | | ?????????????????????????# # *%##! #??????????? | | ?????????????????????????# # %[%=%[ ###????????? | +----------------------------------------------------+ Best States ------------- Heat Dissipation 71 Energy Generation 45 Energy Capacity 565 Matter Stores 300 Matter Capacity 300 Sight Range 16 Terrain Scan Density 10 Power Amplification 30 Armor Coverage 600 Resistance: TH 15 Core Shielding 20 Evasion (%) 55 Targeting Accuracy 16 Core Analysis 6 Recoil Reduction 6 Relay Coupler Types 2 Relay Coupler Value 50 Item Schematics ----------------- Exp. Sensor Array | -8/Materials | Scanalyzed Enh. Autogun | -8/Materials | Scanalyzed Robot Schematics ------------------ None Fabricated ------------ Nothing Alien Tech Used ----------------- None Achievements -------------- None Challenges ------------ None Game ------ Seed MinesnifferArmorGravjet Manual? 0 Play Time 01:43:10 Cumulative 449.2 hours Start 2023.01.30 @ 00:36:08 End 2023.02.03 @ 22:31:33 Sessions 9 Manual Loads 0 Difficulty Rogue Special Mode None Game No. 445 Rogue 445 Adventurer 0 Explorer 0 Win Type - Total 32 Types 18/3/4/1/2/1/3/0/0 Lore% 92 Gallery% 94 Achievement% 82 Wizard Run 0 Options --------- ASCII 0 Keyboard 0 Movement Arrows Keybinds 0 Fullscreen 2 Font 24/Smallcaps Map View 76x50 Tactical HUD 1 Map Filters NONE Filters NONE Steam 1 RUN: bf277353-b8d4-438e-bb39-15c95d9dd380